bitfinex-derivatives/quotes_ETHF0:USTF0_20250810
["timestamp","ask_amount","ask_price","bid_price","bid_amount"]
[1754826093596,12.2981,4221.7,4221.2,0.47377]
[1754826094002,0.4017,4221.6,4221.4,0.5392]
[1754826094198,1.1,4223.5,4221.6,0.3946]
[1754826094400,0.4017,4223.3,4221.5,3.15056714]
[1754826094595,0.4017,4222.3,4221.3,0.47375]
[1754826094802,0.9307,4222.3,4221.4,0.2609]
[1754826095003,28.822,4223.2,4220.1,1.18473]
[1754826095004,0.2634,4222.7,4220.1,1.18473]
[1754826095202,0.9307,4222.5,4221.0,0.6555]
[1754826095396,0.9307,4222.5,4220.9,0.2783]
[1754826095397,1.1531,4221.7,4220.2,1.8214]
[1754826095599,0.7047,4221.3,4220.2,1.8214]
[1754826095899,0.7047,4221.3,4220.3,0.47387]
[1754826096093,0.6477,4221.4,4220.9,0.4738]
[1754826096305,1.2101,4221.9,4221.0,1.8214]
[1754826096504,0.47373,4221.6,4220.4,1.8214]
[1754826096698,0.7047,4221.2,4220.4,1.1688]
[1754826097210,0.7047,4221.2,4220.4,1.8214]
[1754826097499,2.85717859,4236.7,4219.0,34.171]
[1754826097500,1.2101,4221.5,4220.8,0.4846]
[1754826097699,1.12145,4221.4,4220.3,0.4846]
[1754826098000,0.47377,4221.2,4220.3,0.4846]
[1754826098199,1.8578,4221.3,4220.3,0.4846]
[1754826098200,2.33156,4221.3,4220.3,0.4846]
[1754826098501,0.47366,4222.2,4220.8,1.3368]
[1754826098707,1.8578,4222.1,4220.9,1.1688]
[1754826098901,1.8578,4222.1,4221.2,1.1688]
[1754826099103,0.47362,4222.6,4221.4,1.8214]
[1754826099398,0.6477,4222.8,4220.1,1.18472]
[1754826099399,1.2101,4222.5,4221.9,1.1688]
[1754826099605,0.6477,4222.8,4221.9,1.1688]
[1754826099801,0.6477,4222.8,4221.9,1.64249]
[1754826100001,0.6477,4222.8,4221.9,1.1688]
[1754826100196,0.5054,4223.1,4222.1,1.8214]
[1754826100401,0.5054,4223.1,4222.2,0.47366]
[1754826100901,0.5054,4223.1,4222.4,0.47364]
[1754826101103,0.5054,4223.1,4222.5,0.22217835]
[1754826101305,0.5054,4223.1,4222.6,0.69579835]
[1754826101500,1.1,4223.5,4222.8,1.1688]
[1754826101804,1.1,4223.5,4221.6,1.1843]
[1754826101805,1.8578,4224.8,4223.5,0.4208]
[1754826101997,0.47342,4224.4,4223.6,0.22217835]
[1754826102308,1.0,4224.9,4223.7,0.22217835]
[1754826102309,0.47344,4224.2,4223.7,0.22217835]
[1754826102508,1.8578,4224.0,4223.4,0.6526]
[1754826102703,0.47342,4224.4,4223.6,0.6526]
[1754826102903,0.7047,4224.4,4223.7,0.22210869]
[1754826103109,0.47342,4224.3,4223.8,0.22211418]
[1754826103403,0.47345,4224.1,4223.3,1.0734]
[1754826103708,0.47345,4224.1,4223.4,0.2221163]
[1754826103908,0.47345,4224.1,4223.5,0.2221163]
[1754826104099,0.47345,4224.1,4223.6,0.9063163]
[1754826104300,0.47347,4223.9,4223.7,0.22211129]
[1754826104508,0.7047,4222.9,4222.5,1.89123843]
[1754826104704,1.2101,4222.7,4222.6,0.22214125]
[1754826104907,1.8578,4222.7,4222.6,0.22214125]
[1754826105104,0.7047,4222.7,4222.6,0.22214125]
[1754826105299,0.47355,4223.3,4222.7,0.4208]
[1754826105505,0.47356,4223.1,4222.9,1.0734]
[1754826105703,0.47356,4223.1,4222.8,0.22214125]
[1754826105704,1.12126,4223.1,4223.0,0.22214125]
[1754826106202,2.33136,4223.1,4223.0,0.22214125]
[1754826106600,0.4736,4222.6,4222.4,1.89123843]
[1754826106800,1.1783,4222.6,4222.5,0.22216497]
[1754826107005,0.4736,4222.6,4222.5,1.0734]
[1754826107206,1.1783,4222.6,4222.5,0.22216476]
[1754826107604,2.3314,4222.6,4222.5,0.22216476]
[1754826108113,1.68968,4221.7,4221.1,0.69506765]
[1754826108411,0.47386,4220.3,4220.0,0.6842]
[1754826108613,0.47384,4220.6,4220.2,1.8214]
[1754826108910,0.26502706,4220.5,4220.4,1.1372]
[1754826109111,0.26502706,4220.7,4220.5,0.6526]
[1754826109304,1.3524,4220.8,4220.6,0.4846]
[1754826109504,0.7047,4220.7,4220.6,0.4846]
[1754826109900,0.7047,4220.7,4220.2,0.6526]
[1754826109901,0.47384,4220.5,4220.2,0.6526]
[1754826110102,1.8578,4220.5,4219.4,1.1372]
[1754826110303,0.47388,4220.2,4219.4,1.1372]
[1754826110508,0.47389,4220.0,4219.4,1.1372]
[1754826110711,0.47385,4220.4,4219.4,1.1372]
[1754826110903,0.7047,4221.3,4219.7,1.1372]
[1754826111109,0.7047,4221.0,4219.7,1.1372]
[1754826111311,0.6477,4220.9,4220.0,1.60398622]
[1754826111510,0.4738,4220.8,4220.0,1.60398622]
[1754826111809,0.7047,4221.0,4220.0,1.60398622]
[1754826111810,0.7047,4221.0,4220.2,1.3368]
[1754826112013,1.82613,4221.5,4220.4,1.60398622]
[1754826112213,1.82613,4221.5,4220.5,0.4846]
[1754826112616,0.7047,4222.0,4220.8,1.1372]
[1754826112810,0.47373,4221.5,4221.0,0.6526]
[1754826113113,0.7047,4221.3,4221.1,1.1372]
[1754826113514,4.73363,4224.8,4221.2,0.4846]
[1754826113709,0.7047,4222.1,4221.2,0.4846]
[1754826113910,1.17836,4222.1,4221.3,0.6526]
[1754826114213,0.7047,4222.1,4221.3,0.6526]
[1754826114408,0.33873721,4222.0,4221.3,0.6526]
[1754826114609,0.33873721,4221.9,4221.3,0.6526]
[1754826114815,0.33873721,4221.8,4221.0,1.8214]
[1754826115012,0.33873721,4221.7,4221.1,0.4846]
[1754826115216,0.33873721,4221.6,4220.8,1.60398622]
[1754826115410,0.33873721,4222.4,4221.5,1.1372]
[1754826115617,0.33873721,4222.3,4221.7,1.60398622]
[1754826115810,0.5054,4222.5,4221.6,2.08858622]
[1754826116015,1.2101,4221.9,4221.2,0.4846]
[1754826116211,0.6477,4221.8,4221.2,0.4846]
[1754826116408,1.2101,4221.7,4221.3,0.68976836]
[1754826116615,1.8578,4221.5,4221.4,0.68976836]
[1754826116817,1.18396,4222.8,4220.2,1.60398622]
[1754826116818,0.47374,4221.4,4220.2,1.60398622]
[1754826117018,0.47376,4221.2,4220.2,1.60398622]
[1754826117218,1.04343721,4221.1,4220.1,2.74118622]
[1754826117415,0.33873721,4221.2,4220.3,1.1372]
[1754826117608,0.33873721,4221.1,4220.3,1.1372]
[1754826117808,0.33873721,4221.1,4220.3,0.4846]
[1754826118008,0.33873721,4221.1,4220.5,0.4846]
[1754826118215,0.47364,4222.3,4221.1,1.1688]
[1754826118409,0.47368,4222.0,4221.3,1.1688]
[1754826118614,0.7047,4222.0,4221.4,0.6526]
[1754826118816,0.7047,4222.0,4221.5,0.4846]
[1754826119015,0.7047,4221.9,4221.6,1.1372]
[1754826119219,0.7047,4221.9,4221.4,1.1372]
[1754826119519,0.7047,4221.9,4220.9,1.60398622]
[1754826119721,0.7047,4222.4,4221.0,1.60398622]
[1754826119917,1.18366,4223.9,4220.0,36.17869897]
[1754826119918,0.7047,4221.9,4221.2,1.1372]
[1754826120114,1.8578,4221.8,4221.3,0.21405157]
[1754826120318,2.33153,4221.5,4221.4,0.21405157]
[1754826120920,1.1531,4221.5,4220.6,1.60398622]
[1754826121220,0.7047,4221.9,4220.8,1.8214]
[1754826121421,1.2101,4222.4,4221.1,1.60398622]
[1754826121624,1.68372,4222.4,4221.3,1.60398622]
[1754826121826,0.47366,4222.1,4221.4,0.21886593]
[1754826122118,1.1531,4221.6,4221.5,1.82285215]
[1754826122320,1.8578,4221.6,4221.5,0.21886593]
[1754826123321,1.8578,4221.6,4221.5,0.22223106]
[1754826123522,2.33152,4221.6,4221.5,0.22223106]
[1754826123715,2.33152,4221.6,4219.5,0.47394]
[1754826123716,2.33161,4220.8,4220.6,1.60398622]
[1754826123922,0.47385,4220.4,4220.3,1.60398622]
[1754826124117,0.47385,4220.4,4219.6,3.18689897]
[1754826124118,2.33165,4220.4,4220.2,1.60398622]
[1754826124429,1.8578,4220.3,4219.7,1.60398622]
[1754826124631,1.8578,4220.3,4219.7,2.74118622]
[1754826124827,0.47391,4220.0,4219.6,1.60398622]
[1754826125027,0.47391,4220.0,4219.8,0.4846]
[1754826125227,0.47391,4219.9,4219.6,1.60398622]
[1754826125429,0.47394,4219.7,4219.5,1.60398622]
[1754826125631,0.6694,4219.6,4219.5,1.60398622]
[1754826125931,1.14335,4219.5,4219.4,1.60398622]
[1754826126122,1.00615,4219.5,4219.3,0.4959]
[1754826126324,0.47401,4219.0,4218.9,0.6898]
[1754826126524,0.6694,4219.0,4218.9,0.6898]
[1754826126728,2.36952,4218.9,4218.6,1.1857]
[1754826127031,0.6694,4218.8,4218.6,1.1857]
[1754826127231,0.26502706,4218.8,4218.6,1.1857]
[1754826127429,0.26502706,4218.7,4218.5,0.6475]
[1754826127632,0.26502706,4218.8,4218.4,1.60398622]
[1754826127828,0.47401,4219.1,4218.5,0.6475]
[1754826128031,0.47401,4219.1,4218.5,1.1857]
[1754826128227,0.26502706,4219.0,4218.3,1.60398622]
[1754826128632,0.26502706,4218.9,4218.8,1.8332]
[1754826128828,0.6694,4218.9,4218.8,0.63423298]
[1754826129129,2.16052706,4218.9,4218.8,0.63423298]
[1754826129335,2.16052706,4218.9,4218.8,1.89222829]
[1754826129730,2.16052706,4218.9,4218.8,0.63423298]
[1754826130031,0.93442706,4218.9,4218.8,1.89222829]
[1754826130337,2.16052706,4218.9,4218.8,0.63423298]
[1754826130835,2.38289061,4218.9,4218.8,0.01161407]
[1754826131429,2.38289061,4218.9,4218.8,1.26941085]
[1754826132236,2.38289061,4218.9,4218.8,0.01161407]
[1754826132426,2.38289061,4218.9,4218.8,1.26941085]
[1754826132630,2.38289061,4218.9,4218.8,0.01161407]
[1754826134238,2.46975706,4218.8,4218.6,0.00269678]
[1754826134440,3.13820355,4218.7,4217.7,1.1434]
[1754826134641,0.47413,4217.9,4217.8,1.8332]
[1754826134843,0.69649355,4217.9,4217.8,1.8332]
[1754826135037,0.73915706,4217.9,4217.8,1.8332]
[1754826135236,1.65544515,4217.9,4217.8,1.8332]
[1754826135631,1.65544515,4217.9,4217.8,1.1434]
[1754826135837,0.47418,4217.5,4217.4,2.85277344]
[1754826136146,0.22238809,4217.5,4217.4,2.85277344]
[1754826136346,0.48741515,4217.5,4217.4,2.85277344]
[1754826136841,0.48741515,4217.5,4217.4,2.67485055]
[1754826138838,1.18131515,4217.5,4217.4,2.67485055]
[1754826139345,0.48741515,4217.5,4217.4,2.67485055]
[1754826139743,0.6939,4218.5,4217.4,0.84165055]
[1754826140039,1.2016,4218.4,4217.6,1.8332]
[1754826140244,1.18523,4218.3,4217.4,0.84165055]
[1754826140543,2.36968,4217.5,4217.4,0.84165055]
[1754826141636,1.8955,4217.5,4217.4,0.84165055]
[1754826141838,0.47417,4217.6,4217.4,2.67485055]
[1754826142038,0.47417,4217.6,4217.5,1.8332]
[1754826142234,0.47413,4217.9,4217.4,0.84165055]
[1754826142435,0.47414,4217.9,4217.6,1.8332]
[1754826142741,2.41129,4218.5,4217.6,1.8332]
[1754826142742,0.47413,4218.0,4217.6,1.8332]
[1754826143040,0.6694,4218.6,4218.0,1.3373]
[1754826143347,0.6694,4218.6,4217.4,0.84165055]
[1754826143348,0.6939,4219.1,4218.3,0.4959]
[1754826143543,0.47403,4218.8,4218.4,0.6475]
[1754826143843,1.2261,4218.7,4217.8,1.9826972]
[1754826144141,0.474,4219.1,4218.0,0.4959]
[1754826144334,0.5322,4219.7,4218.1,0.6475]
[1754826144538,0.47407,4218.5,4218.0,0.4959]
[1754826144739,1.2261,4218.0,4217.9,0.6898]
[1754826145038,0.47409,4218.3,4217.7,0.6475]
[1754826145238,1.8955,4218.2,4217.7,0.6475]
[1754826145446,0.47409,4218.3,4217.7,0.6475]
[1754826145642,1.8955,4218.0,4217.8,1.1857]
[1754826145842,0.6939,4218.0,4217.9,1.8332]
[1754826146042,2.36963,4218.0,4217.5,1.1434]
[1754826146238,1.18506,4218.9,4217.4,1.53145055]
[1754826146239,1.8955,4217.7,4217.4,1.53145055]
[1754826146550,0.47415,4217.8,4217.4,0.84165055]
[1754826146850,1.8955,4217.5,4217.4,0.84165055]
[1754826147140,1.8955,4217.5,4217.4,1.98505055]
[1754826147346,0.47417,4217.6,4217.4,3.30417916]
[1754826147549,1.8955,4217.5,4217.4,1.47097916]
[1754826147850,1.8955,4217.5,4217.4,0.84165055]
[1754826148348,1.8955,4217.5,4217.4,1.47097916]
[1754826148550,1.2261,4217.5,4217.4,3.30417916]
[1754826148748,1.2261,4217.7,4217.4,0.84165055]
[1754826149048,1.2261,4217.7,4217.5,2.46287454]
[1754826149455,1.2261,4217.7,4217.6,0.62967454]
[1754826149743,1.8955,4217.6,4217.5,0.62967454]
[1754826150045,0.47416,4217.5,4217.4,0.84165055]
[1754826150247,2.36966,4217.5,4217.4,0.84165055]
[1754826151655,2.59209244,4217.5,4217.4,1.48915055]
[1754826152045,2.59209244,4217.5,4217.4,2.67485055]
[1754826152247,2.59209244,4217.5,4217.4,2.58587757]
[1754826152443,0.69659244,4217.5,4217.4,0.75267757]
[1754826152649,2.59209244,4217.5,4217.4,0.75267757]
[1754826153755,2.59209244,4217.5,4217.4,0.61920832]
[1754826154254,0.47421,4217.1,4217.0,0.62967454]
[1754826154455,1.5979,4217.0,4216.9,0.62967454]
[1754826154649,0.47423,4216.9,4216.7,0.8392972]
[1754826154844,0.47423,4216.9,4216.7,0.6898]
[1754826154845,0.22243244,4216.8,4216.7,0.6898]
[1754826155152,0.22243244,4216.8,4216.7,1.5290972]
[1754826155544,0.22243244,4216.8,4216.7,2.7394972]
[1754826155946,0.22243244,4216.8,4216.7,2.74348192]
[1754826156153,0.22243244,4216.8,4216.7,1.72222882]
[1754826157751,0.47417,4217.5,4216.7,1.2104]
[1754826157953,0.47417,4217.5,4217.3,0.5143]
[1754826158157,1.7926,4217.3,4217.2,0.84334523]
[1754826158346,2.2668,4217.2,4217.1,0.84334523]
[1754826158548,0.47422,4217.0,4216.9,0.84334523]
[1754826158855,1.7926,4216.9,4216.8,0.84334523]
[1754826159044,0.6771,4216.9,4216.8,2.76144523]
[1754826159549,0.47424,4216.9,4216.6,1.26501785]
[1754826159748,0.47424,4216.9,4216.8,0.84381308]
[1754826159952,2.26682,4217.1,4216.9,1.4038]
[1754826160151,0.6771,4217.0,4216.9,2.76191105]
[1754826160354,1.1341,4217.0,4216.9,2.76191105]
[1754826160554,1.7926,4217.0,4216.9,0.63292667]
[1754826161157,1.7926,4217.0,4216.9,1.84332667]
[1754826161357,1.7926,4217.0,4216.9,2.55102667]
[1754826161957,1.7926,4217.0,4216.9,0.63292667]
[1754826163055,1.18545,4217.5,4216.5,1.2104]
[1754826163056,0.47427,4216.6,4216.5,0.63292667]
[1754826163356,2.26687,4216.6,4216.5,0.63292667]
[1754826163555,1.3356,4216.4,4216.3,0.63292667]
[1754826163857,2.2669,4216.3,4216.2,0.63292667]
[1754826164560,2.2669,4216.3,4215.9,0.6961]
[1754826164561,0.47434,4216.0,4215.9,2.76191105]
[1754826165957,1.15144,4216.0,4215.9,0.84381105]
[1754826166160,0.47434,4216.0,4215.7,0.84381105]
[1754826166359,0.47437,4215.7,4215.6,0.84381105]
[1754826166560,1.58987,4215.7,4215.5,0.7077]
[1754826166759,2.26697,4215.7,4215.6,2.7620327]
[1754826167054,0.47437,4215.7,4215.6,2.7620327]
[1754826167862,2.26697,4215.7,4215.6,2.7620327]
[1754826168059,2.26697,4215.7,4215.6,2.0543327]
[1754826168258,2.26697,4215.7,4214.3,0.47452]
[1754826168259,0.47439,4215.5,4215.4,0.8439327]
[1754826168460,2.26699,4215.5,4215.4,2.0543327]
[1754826169054,2.26699,4215.5,4215.4,1.2104]
[1754826169253,2.26699,4215.5,4215.3,2.0543327]
[1754826169254,0.6771,4215.4,4215.3,2.0543327]
[1754826169555,0.47439,4215.5,4215.4,1.9181]
[1754826169760,2.26699,4215.5,4215.4,1.9181]
[1754826170767,2.26699,4215.5,4215.4,0.5143]
[1754826171165,1.7926,4215.5,4215.4,0.5143]
[1754826172063,1.7854,4215.3,4215.2,1.2104]
[1754826172266,2.25983,4215.2,4215.0,1.5516327]
[1754826172459,1.7854,4215.8,4215.0,1.5516327]
[1754826172766,0.6771,4215.8,4215.2,0.7077]
[1754826172963,1.7854,4216.4,4215.3,1.9181]
[1754826173156,1.7854,4216.4,4215.6,1.4038]
[1754826173157,0.6771,4216.4,4215.6,1.4038]
[1754826173361,0.47428,4216.5,4215.8,2.7620327]
[1754826173561,1.18562,4216.8,4215.9,2.7620327]
[1754826173865,1.60122,4216.2,4216.0,0.7077]
[1754826174058,1.18562,4216.8,4215.8,0.8439327]
[1754826174059,0.47434,4216.0,4215.8,1.5400327]
[1754826174264,1.7854,4215.9,4215.8,1.9181]
[1754826174456,0.47433,4216.1,4215.9,1.9181]
[1754826174768,0.47435,4215.9,4215.8,1.9181]
[1754826174969,0.47434,4216.1,4215.9,1.9181]
[1754826175267,0.47434,4216.1,4215.7,0.8439327]
[1754826175461,0.47434,4216.1,4216.0,1.9181]
[1754826176060,0.47432,4216.2,4215.8,0.8439327]
[1754826176260,0.92412,4216.2,4216.1,1.9181]
[1754826176466,1.60122,4216.2,4216.1,1.9181]
[1754826177062,2.25972,4216.2,4216.1,1.9181]
[1754826177459,0.47432,4216.2,4216.1,1.9181]
[1754826178167,0.16514935,4216.9,4215.9,0.8439327]
[1754826178367,0.16517903,4216.9,4216.5,1.2104]
[1754826178563,0.47422,4217.1,4216.7,2.0543327]
[1754826178786,0.47421,4217.2,4216.9,1.4038]
[1754826179074,0.47419,4217.3,4217.1,1.9181]
[1754826179274,0.47419,4217.3,4217.2,1.9181]
[1754826179576,0.6771,4217.3,4217.2,1.9181]
[1754826180471,1.7854,4217.8,4217.3,1.2104]
[1754826180675,0.47418,4217.5,4217.1,1.9181]
[1754826180873,0.47419,4217.4,4217.2,1.2104]
[1754826181073,0.84227903,4218.1,4217.2,1.9181]
[1754826181273,0.6771,4218.1,4217.3,1.4038]
[1754826181472,0.6771,4218.1,4217.3,1.9181]
[1754826181775,0.6771,4218.1,4217.5,2.2477327]
[1754826181974,1.7854,4218.0,4217.7,1.9181]
[1754826182177,1.15124,4217.8,4217.5,0.8439327]
[1754826182371,0.47414,4217.8,4217.5,0.8439327]
[1754826182578,0.6771,4217.7,4217.5,0.8439327]
[1754826182878,0.47416,4217.6,4217.4,0.8439327]
[1754826183077,0.6771,4217.5,4217.3,0.8439327]
[1754826183273,0.47416,4217.6,4217.3,0.8439327]
[1754826183472,0.47416,4217.6,4217.5,0.5143]
[1754826183673,0.47416,4217.6,4217.5,1.9181]
[1754826183873,2.25953,4217.8,4217.7,0.7077]
[1754826184180,2.25953,4217.8,4217.7,1.9181]
[1754826184473,0.6771,4217.8,4217.7,1.9181]
[1754826184778,0.47411,4218.0,4217.6,0.8439327]
[1754826184972,0.6771,4218.0,4217.8,0.7077]
[1754826185170,1.7854,4218.0,4217.9,1.2104]
[1754826185568,0.47412,4217.9,4217.6,0.8439327]
[1754826185876,1.18527,4218.1,4217.2,0.8439327]
[1754826186077,2.20599,4217.3,4217.1,0.8439327]
[1754826186282,1.7318,4217.1,4217.0,0.8439327]
[1754826186773,1.18531,4217.9,4216.6,1.26501785]
[1754826186774,1.182,4217.0,4216.6,1.26501785]
[1754826186974,1.0796,4216.2,4216.0,1.26501785]
[1754826187183,0.47429,4216.5,4216.1,1.26525243]
[1754826187365,25.529,4217.3,4216.1,1.26525243]
[1754826187366,0.47427,4216.6,4216.1,1.26525243]
[1754826187571,0.47427,4216.6,4216.3,1.8415]
[1754826187771,25.529,4217.3,4216.2,1.1693]
[1754826187772,0.47429,4216.4,4216.2,1.1693]
[1754826187973,1.0796,4216.3,4216.2,1.1693]
[1754826188375,1.0796,4216.3,4216.2,1.8415]
[1754826188872,0.4406,4217.0,4216.2,1.8415]
[1754826189070,0.47426,4216.7,4216.4,0.4865]
[1754826189276,0.47426,4216.7,4216.2,1.26525243]
[1754826189575,0.47426,4216.7,4216.6,1.8415]
[1754826190469,1.55386,4216.7,4216.6,0.6722]
[1754826190869,17.95906315,4218.6,4215.3,0.47441]
[1754826190870,1.0796,4217.5,4216.1,1.26525243]
[1754826191076,1.5538,4217.5,4216.3,1.1693]
[1754826191371,1.0796,4216.9,4216.3,1.26525243]
[1754826191573,0.91487,4216.6,4216.3,1.26525243]
[1754826191771,0.91487,4216.6,4214.9,2.04969897]
[1754826191772,0.47429,4216.4,4216.1,1.26525243]
[1754826191970,0.4742,4216.7,4216.1,0.6828]
[1754826192172,0.47426,4216.7,4216.1,0.6828]
[1754826192373,1.0796,4216.9,4216.1,0.6828]
[1754826192575,0.47423,4216.9,4216.3,1.355]
[1754826192878,0.47423,4217.0,4216.5,1.355]
[1754826193076,0.47423,4217.0,4216.1,1.26525243]
[1754826193077,0.47423,4217.0,4216.6,1.8415]
[1754826193280,0.47418,4217.4,4216.6,0.6828]
[1754826193475,0.4742,4217.2,4216.7,1.8415]
[1754826193678,0.4742,4217.2,4216.6,1.26525243]
[1754826193679,0.4742,4217.2,4216.8,1.8415]
[1754826193979,0.4742,4217.2,4216.9,1.8415]
[1754826194179,0.4742,4217.2,4217.0,0.4865]
[1754826194374,0.4742,4217.2,4217.1,1.1693]
[1754826194583,0.639,4217.7,4216.6,2.43455243]
[1754826194584,0.9148,4217.6,4216.6,2.43455243]
[1754826194775,0.47425,4216.7,4216.6,1.8415]
[1754826194976,0.91485,4216.7,4216.6,1.8415]
[1754826195178,2.02805,4216.7,4216.6,1.8415]
[1754826195477,0.47429,4216.4,4216.3,1.26525243]
[1754826195674,0.91489,4216.4,4216.3,1.8415]
[1754826196775,0.47429,4216.4,4216.3,1.8415]
[1754826197571,1.11332,4216.1,4216.0,1.8415]
[1754826197776,2.02812,4216.1,4216.0,1.1587]
[1754826198177,2.02812,4216.1,4216.0,1.8415]
[1754826200577,2.02812,4216.1,4216.0,0.6722]
[1754826200777,2.02812,4216.1,4215.9,1.26525243]
[1754826200778,0.47432,4216.1,4215.9,1.26525243]
[1754826200973,1.5538,4216.0,4215.9,1.26525243]
[1754826201575,2.02814,4215.9,4215.7,1.93745243]
[1754826201774,1.5538,4215.8,4215.6,1.26525243]
[1754826201978,0.47439,4215.5,4215.4,1.26525243]
[1754826202183,2.02819,4215.5,4215.4,1.26525243]
[1754826202486,1.5538,4215.4,4215.3,1.26525243]
[1754826203581,1.5538,4215.4,4215.3,0.6722]
[1754826203989,1.5538,4215.4,4215.2,1.26525243]
[1754826204286,1.5538,4215.3,4215.2,1.26525243]
[1754826204588,1.55402,4215.2,4215.1,1.8415]
[1754826204788,2.02822,4215.2,4215.1,1.8415]
[1754826205180,1.55402,4215.2,4215.1,1.8415]
[1754826206486,0.47442,4215.2,4215.1,1.8415]
[1754826207085,0.47442,4215.2,4215.1,3.0423]
[1754826207281,0.90892,4215.2,4215.1,3.0423]
[1754826208281,2.92582,4215.2,4215.1,3.0423]
[1754826208489,3.27852,4215.2,4215.1,3.0423]
[1754826208691,2.80432,4215.2,4215.1,3.0423]
[1754826209691,1.72472,4215.2,4215.1,3.0423]
[1754826210292,0.47445,4215.0,4214.9,3.0423]
[1754826210786,0.47444,4215.1,4214.9,3.0423]
[1754826210986,0.47444,4215.1,4215.0,3.0423]
[1754826214192,0.47435,4215.9,4214.9,1.26525243]
[1754826214394,2.34113,4216.0,4215.9,3.0423]
[1754826214895,3.27843,4216.0,4215.9,3.0423]
[1754826215497,3.27843,4216.0,4215.9,1.873]
[1754826216193,3.27843,4216.0,4215.9,3.015]
[1754826216591,0.47433,4216.0,4215.9,3.015]
[1754826217895,2.78633,4216.0,4215.9,3.015]
[1754826218089,3.25087,4215.6,4215.5,0.84441055]
[1754826218288,1.8664,4215.7,4215.6,3.0261]
[1754826218492,2.312,4215.7,4215.6,3.0261]
[1754826218893,1.31491846,4216.2,4215.6,3.0261]
[1754826219101,0.47434,4216.0,4215.9,3.0261]
[1754826219799,3.25074,4216.8,4216.7,1.2094]
[1754826219996,3.25074,4216.8,4216.7,3.0261]
[1754826220295,0.93934,4216.8,4216.7,3.0261]
[1754826220490,0.47424,4216.8,4216.7,1.8841]
[1754826220696,0.64049243,4216.9,4216.8,3.0261]
[1754826221194,3.25072,4217.0,4216.9,1.8841]
[1754826222100,0.47422,4217.0,4216.9,3.0261]
[1754826222501,0.4651,4217.0,4216.9,3.0261]
[1754826222892,1.5464,4217.0,4216.9,3.0261]
[1754826223200,2.312,4217.0,4216.9,3.0261]
[1754826223693,2.7765,4217.0,4216.7,0.84422604]
[1754826223893,0.47421,4217.1,4216.7,0.84422604]
[1754826223894,2.7765,4216.8,4216.7,1.4509]
[1754826224200,2.7765,4216.8,4216.7,2.29512604]
[1754826224391,2.7765,4216.8,4216.7,3.0261]
[1754826224894,2.312,4216.8,4216.7,3.0261]
[1754826225299,2.312,4216.8,4216.7,3.87032604]
[1754826225691,2.312,4216.8,4216.7,3.0261]
[1754826226098,2.7765,4216.8,4216.7,3.0261]
[1754826226301,2.7765,4216.8,4216.7,1.8841]
[1754826226803,2.7765,4216.8,4216.7,3.0261]
[1754826227907,2.3309,4216.7,4216.6,0.84422604]
[1754826228100,2.7765,4216.7,4216.6,0.84422604]
[1754826229301,3.25076,4216.6,4216.5,0.84422604]
[1754826229502,3.25076,4216.6,4216.5,2.72832604]
[1754826229806,3.25076,4216.6,4216.5,3.87032604]
[1754826230400,3.25076,4216.6,4216.5,0.84422604]
[1754826230600,1.35172243,4217.4,4216.2,2.53112604]
[1754826230601,1.664,4216.3,4216.2,2.53112604]
[1754826230806,2.7765,4216.3,4216.2,3.87032604]
[1754826231306,2.7765,4216.3,4216.2,2.72832604]
[1754826231702,2.7765,4216.3,4216.1,0.84422604]
[1754826231904,3.25082,4216.1,4216.0,3.87032604]
[1754826232207,3.25082,4216.1,4216.0,2.29512604]
[1754826232400,3.25082,4216.1,4216.0,3.87032604]
[1754826233303,3.25082,4216.1,4216.0,2.72832604]
[1754826233504,3.25082,4216.1,4216.0,3.87032604]
[1754826235909,3.25082,4216.1,4216.0,2.72832604]
[1754826236108,3.25082,4216.1,4216.0,2.29512604]
[1754826236405,2.7765,4216.0,4215.9,0.84422604]
[1754826236902,2.3114,4215.9,4215.8,0.84422604]
[1754826237109,3.25085,4215.8,4215.7,0.84422604]
[1754826237405,2.7765,4215.5,4215.4,3.62685243]
[1754826237607,2.7765,4215.5,4215.4,1.26525243]
[1754826237806,2.7765,4215.5,4215.4,2.69965243]
[1754826238106,2.7765,4215.5,4215.4,0.84538403]
[1754826238305,2.7765,4215.4,4215.3,1.52008403]
[1754826238506,1.2307,4215.2,4215.1,2.3514]
[1754826238709,2.7765,4215.2,4215.1,3.0261]
[1754826240501,2.7765,4215.2,4215.1,4.29135243]
[1754826241308,2.7765,4215.2,4215.1,4.29508735]
[1754826241805,0.4651,4215.2,4215.1,4.29508735]
[1754826242004,0.93951,4215.3,4215.2,3.0261]
[1754826242310,2.13841,4215.3,4215.2,3.0261]
[1754826242608,2.312,4215.2,4215.1,4.29508735]
[1754826242805,2.7765,4215.2,4215.1,1.8841]
[1754826242999,0.47447,4214.7,4214.6,0.6747]
[1754826243204,0.47447,4214.7,4214.6,3.0261]
[1754826243205,2.312,4214.7,4214.6,3.0261]
[1754826243403,0.47446,4214.9,4214.6,1.2094]
[1754826243602,1.0813,4215.3,4214.0,1.60398622]
[1754826243603,0.47444,4215.0,4214.8,3.0261]
[1754826243799,0.47444,4215.0,4214.9,3.0261]
[1754826244206,0.4651,4215.1,4215.0,3.0261]
[1754826244702,0.47446,4214.8,4214.7,1.2094]
[1754826244908,2.7431,4214.8,4214.7,3.0261]
[1754826246900,2.7431,4214.8,4214.7,1.8841]
[1754826247206,2.6686,4214.6,4214.5,2.257]
[1754826247597,0.7381,4214.6,4214.5,2.8818]
[1754826247808,0.4163,4214.6,4214.5,2.8818]
[1754826249806,0.47445,4214.9,4214.6,1.7233]
[1754826250008,0.47445,4214.9,4214.8,2.8818]
[1754826250009,0.89075,4214.9,4214.8,2.8818]
[1754826250411,1.30915,4214.9,4214.8,2.8818]
[1754826250707,3.14305,4214.9,4214.8,2.8818]
[1754826253112,2.6686,4214.9,4214.8,2.8818]